bitfinex-derivatives/quotes_BNBF0:USTF0_20250425
["timestamp","ask_amount","ask_price","bid_price","bid_amount"]
[1745579501583,1.37636052,606.84,605.4,0.30306143]
[1745579501784,2.50168252,606.83,605.41,0.30305655]
[1745579501983,1.37636052,606.82,605.37,0.30305655]
[1745579502184,2.50168252,606.81,605.38,0.30305655]
[1745579502381,1.37636052,606.8,605.37,0.30305655]
[1745579502586,1.37636052,606.79,605.38,0.30305655]
[1745579502787,1.37636052,606.78,605.37,0.30305655]
[1745579502987,1.37636052,606.77,605.38,0.30305655]
[1745579503188,2.50168252,606.76,605.36,0.28707542]
[1745579503385,1.37589548,606.75,605.37,0.30305539]
[1745579503590,1.37589548,606.74,605.38,0.30305539]
[1745579503790,1.37589548,606.73,605.39,0.30305539]
[1745579503992,2.50121748,606.72,605.4,0.30305539]
[1745579504191,1.37589548,606.71,605.41,0.30305539]
[1745579504391,1.37589548,606.7,605.42,0.30305539]
[1745579504687,1.37589548,606.69,605.43,0.30305539]
[1745579504892,2.50121748,606.68,605.37,0.30305539]
[1745579505088,1.37589548,606.67,605.38,0.30305539]
[1745579505289,2.50077456,606.66,605.37,0.30305539]
[1745579505491,1.37545256,606.65,605.38,0.30305539]
[1745579505688,2.50077456,606.64,605.39,0.30305539]
[1745579505892,1.37545256,606.63,605.4,0.30305539]
[1745579506089,1.37545256,606.62,605.41,0.30305539]
[1745579506289,2.50077456,606.61,605.41,0.30305539]
[1745579506495,1.37545256,606.6,605.41,0.30305539]
[1745579506698,1.37545256,606.59,605.41,0.30305539]
[1745579506899,1.24128218,608.22,605.41,0.30305539]
[1745579507197,1.24128218,608.22,605.41,1.63005539]
[1745579507398,2.50730322,608.21,605.42,0.30305539]
[1745579507598,1.37489573,608.2,605.42,0.30305539]
[1745579507799,2.50730322,608.19,605.43,0.30305803]
[1745579507999,1.37489573,608.18,605.42,0.30305803]
[1745579508200,1.37489573,608.17,605.43,0.30305803]
[1745579508426,2.50730322,608.16,605.44,0.30305803]
[1745579508704,1.37489573,608.15,605.45,0.30305803]
[1745579508900,1.37489573,608.14,605.42,0.30305803]
[1745579509103,1.37489573,608.13,605.43,0.30305803]
[1745579509304,2.50730322,608.12,605.44,0.30307571]
[1745579509522,1.37489573,608.11,605.42,0.30307571]
[1745579509697,1.37489573,608.1,605.43,0.30307571]
[1745579509906,1.37489573,608.09,605.42,0.30307571]
[1745579510097,2.50730322,608.08,605.43,0.30307571]
[1745579510297,1.37489573,608.07,605.44,0.30307571]
[1745579510602,2.50730322,608.06,605.45,0.30307571]
[1745579510802,1.37489573,608.05,605.46,0.30307571]
[1745579511001,1.37489573,608.04,605.47,0.30307571]
[1745579511203,2.50730322,608.03,605.42,0.30307571]
[1745579511498,2.50730322,608.02,605.43,0.30307571]
[1745579511699,1.37489573,608.01,605.41,1.327]
[1745579511904,1.37489573,608.0,605.41,1.327]
[1745579512204,1.37489573,607.99,605.41,1.327]
[1745579512400,1.37489573,607.98,605.41,1.327]
[1745579512599,2.50612422,607.97,605.41,1.327]
[1745579512903,1.37371673,607.96,605.41,1.327]
[1745579513102,2.50612422,607.95,605.41,1.327]
[1745579513300,1.37371673,607.94,605.41,1.327]
[1745579513504,1.37371673,607.93,605.41,1.327]
[1745579513724,1.37371673,607.92,605.41,1.327]
[1745579513901,1.37371673,607.91,605.41,1.327]
[1745579514100,1.13240749,607.92,605.41,1.327]
[1745579514101,1.37371673,607.9,605.41,1.327]
[1745579514305,1.37371673,607.89,605.41,1.327]
[1745579514606,2.50612422,607.88,605.41,1.327]
[1745579514803,1.37371673,607.87,605.41,1.327]
[1745579515002,1.37371673,607.86,605.41,1.327]
[1745579515205,2.50612422,607.85,605.41,1.327]
[1745579515406,1.37371673,607.84,605.41,1.327]
[1745579515603,2.50612422,607.83,605.41,1.327]
[1745579515803,1.37371673,607.82,605.41,1.327]
[1745579516005,1.37371673,607.81,605.41,1.327]
[1745579516205,1.37371673,607.8,605.41,1.327]
[1745579516404,2.50612422,607.79,605.41,1.327]
[1745579516604,1.37371673,607.78,605.41,1.327]
[1745579516806,1.37371673,607.77,605.41,1.327]
[1745579517005,1.37371673,607.76,605.41,1.327]
[1745579517306,2.50612422,607.75,605.41,2.718]
[1745579517508,1.37371673,607.74,605.41,2.718]
[1745579517707,1.37371673,607.73,605.41,2.718]
[1745579517907,1.37371673,607.72,605.41,2.718]
[1745579518107,1.37371673,607.71,605.41,2.718]
[1745579518303,1.37371673,607.7,605.41,2.718]
[1745579518501,1.37371673,607.69,605.41,2.718]
[1745579518706,1.37371673,607.68,605.41,2.718]
[1745579519029,1.37371673,607.67,605.41,2.718]
[1745579519205,2.50612422,607.66,605.41,2.718]
[1745579519404,1.37371673,607.65,605.41,2.718]
[1745579519602,2.50612422,607.64,605.41,2.718]
[1745579519807,1.37371673,607.63,605.41,2.718]
[1745579520004,1.3738213,607.62,605.41,2.718]
[1745579520209,1.3738213,607.61,605.41,2.718]
[1745579520409,2.50622879,607.6,605.41,2.718]
[1745579520609,1.3738213,607.59,605.41,2.718]
[1745579520905,1.3738213,607.58,605.41,2.718]
[1745579521107,1.13240749,607.59,605.41,2.718]
[1745579521108,1.3738213,607.57,605.41,2.718]
[1745579521309,2.50644567,607.56,605.41,2.718]
[1745579521511,1.37403818,607.55,605.41,2.718]
[1745579521710,2.50644567,607.54,605.41,2.718]
[1745579521905,2.50644567,607.53,605.41,2.718]
[1745579522105,1.37403818,607.52,605.41,2.718]
[1745579522305,1.37403818,607.51,605.41,2.718]
[1745579522517,2.50644567,607.5,605.41,2.718]
[1745579522711,1.37403818,607.49,605.41,2.718]
[1745579523011,2.50644567,607.48,605.41,2.718]
[1745579523213,1.37403818,607.47,605.41,2.718]
[1745579523410,1.37403818,607.46,605.41,2.718]
[1745579523612,1.37403818,607.45,605.41,2.718]
[1745579523816,2.50644567,607.44,605.4,0.28704819]
[1745579524011,1.37403818,607.43,605.4,0.28704819]
[1745579524215,1.37403818,607.42,605.4,0.28704819]
[1745579524418,1.37403818,607.41,605.4,0.28704819]
[1745579524719,2.50644567,607.4,605.4,0.28704819]
[1745579524909,2.50681342,607.39,605.4,0.28704819]
[1745579525112,1.37440593,607.38,605.4,0.28704819]
[1745579525334,1.37440593,607.37,605.4,0.28704819]
[1745579525517,2.50681342,607.36,605.41,0.30317058]
[1745579525717,2.50681342,607.35,605.4,0.28704819]
[1745579525917,1.37440593,607.34,605.4,0.28704819]
[1745579526217,1.37440593,607.33,605.4,0.28704819]
[1745579526513,2.50681342,607.32,605.4,0.28704819]
[1745579526719,1.37440593,607.31,605.4,0.28704819]
[1745579527020,2.50681342,607.3,605.4,0.28704819]
[1745579527214,1.37440593,607.29,605.4,0.28704819]
[1745579527414,1.37440593,607.28,605.4,0.28704819]
[1745579527615,1.37440593,607.27,605.4,0.28704819]
[1745579527820,1.37440593,607.26,605.4,0.28704819]
[1745579528020,2.50681342,607.25,605.4,0.28704819]
[1745579528220,0.28704227,607.56,605.4,0.28704819]
[1745579528221,2.50681342,607.24,605.4,0.28704819]
[1745579528414,1.37440593,607.23,605.4,0.28704819]
[1745579528616,2.50681342,607.22,605.4,0.28704819]
[1745579528819,1.37440593,607.21,605.4,0.28704819]
[1745579529022,2.50681342,607.2,605.4,0.28704819]
[1745579529221,2.50681342,607.19,605.4,0.28704819]
[1745579529419,1.37440593,607.18,605.4,0.28704819]
[1745579529618,1.37440593,607.17,605.4,0.28704819]
[1745579529816,1.37440593,607.16,605.4,0.28704819]
[1745579530020,1.13240749,607.19,605.4,0.28704819]
[1745579530021,2.50681342,607.15,605.4,0.28704819]
[1745579530221,1.37440593,607.14,605.4,0.28704819]
[1745579530522,1.37440593,607.13,604.96,1.04680513]
[1745579530716,2.50681342,607.12,605.4,0.28716544]
[1745579530920,2.50681342,607.11,604.96,1.04680513]
[1745579531119,0.28716544,607.15,604.97,0.3032546]
[1745579531120,2.50681342,607.1,604.97,0.3032546]
[1745579531320,1.37440593,607.09,604.97,0.3032546]
[1745579531521,2.50681342,607.08,604.97,0.3032546]
[1745579531827,1.37440593,607.07,604.98,0.59043738]
[1745579532119,1.37442254,607.06,604.99,0.30325654]
[1745579532323,1.37442254,607.05,605.0,1.04680513]
[1745579532524,2.50683003,607.04,605.01,0.30325654]
[1745579532741,1.37442254,607.03,605.01,0.30325654]
[1745579532924,2.50683003,607.02,605.01,0.30325654]
[1745579533118,1.37442254,607.01,605.01,0.30325654]
[1745579533318,2.50683003,607.0,605.02,0.30325238]
[1745579533524,1.37442254,606.99,605.01,0.30325238]
[1745579533825,2.50683003,606.98,605.02,1.42625238]
[1745579534024,1.37451431,606.97,605.03,0.30325238]
[1745579534325,1.37451431,606.96,605.03,0.30325238]
[1745579534525,1.37451431,606.95,605.03,0.30325238]
[1745579534850,1.37451431,606.94,605.04,0.30324212]
[1745579535125,2.5069218,606.93,605.05,0.30324212]
[1745579535326,1.37451431,606.92,605.03,0.30324212]
[1745579535519,1.37451431,606.91,605.04,0.30324212]
[1745579535723,2.5069218,606.9,605.03,0.30324212]
[1745579535925,1.37451431,606.89,605.04,0.30324212]
[1745579536121,1.37451431,606.88,605.03,0.30324212]
[1745579536328,1.37451431,606.87,605.04,0.30324754]
[1745579536521,1.37451431,606.86,605.03,0.30324754]
[1745579536722,2.5069218,606.85,605.04,0.30324754]
[1745579536922,1.37451431,606.84,605.03,0.30324754]
[1745579537120,2.5069218,606.83,605.04,0.30324754]
[1745579537324,1.37451431,606.82,605.03,0.30324754]
[1745579537626,2.50706054,606.81,605.04,0.30324754]
[1745579537925,1.37465305,606.8,605.05,0.30324754]
[1745579538123,2.50706054,606.79,605.03,0.30324754]
[1745579538328,1.37465305,606.78,605.04,0.30324754]
[1745579538630,1.37465305,606.77,605.05,0.30324754]
[1745579538926,2.50706054,606.76,605.06,0.30324754]
[1745579539128,1.37465305,606.75,605.03,0.30324754]
[1745579539330,2.50706054,606.74,605.02,3.838]
[1745579539530,1.37482571,606.73,605.03,0.30324514]
[1745579539829,1.37482571,606.72,605.03,0.30324514]
[1745579540024,1.37482571,606.71,605.03,0.30324514]
[1745579540224,1.37482571,606.7,605.03,0.30324514]
[1745579540524,1.37482571,606.69,605.03,0.30324514]
[1745579540728,2.5072332,606.68,605.03,0.30324514]
[1745579540926,2.5072332,606.67,605.03,0.30324514]
[1745579541143,1.37482571,606.66,605.03,0.30324514]
[1745579541328,2.50732597,606.65,605.03,0.30324514]
[1745579541531,1.37491848,606.64,605.03,0.30324514]
[1745579541729,1.37491848,606.63,605.03,0.30324514]
[1745579541928,1.37491848,606.62,605.03,0.30324514]
[1745579542125,1.37491848,606.61,605.03,0.30324514]
[1745579542327,2.50732597,606.6,605.03,0.30324514]
[1745579542527,1.37491848,606.59,605.03,0.30324514]
[1745579542728,1.37491848,606.58,605.03,0.30324514]
[1745579543026,2.50741127,606.57,605.03,0.30324514]
[1745579543330,1.37500378,606.56,605.03,0.30324514]
[1745579543629,1.24128218,607.5,605.03,0.30324514]
[1745579543630,2.50741127,606.55,605.03,0.30324514]
[1745579543932,1.37500378,606.54,605.04,0.30322009]
[1745579544252,1.37500378,606.53,605.05,0.30322009]
[1745579544529,2.50741127,606.52,605.06,0.30322009]
[1745579544824,1.37500378,606.51,605.07,0.30322009]
[1745579545029,1.37559555,606.5,605.08,0.30322009]
[1745579545223,2.50800304,606.49,605.03,0.30322009]
[1745579545531,1.37559555,606.48,605.03,0.30322009]
[1745579545726,2.50800304,606.47,605.03,0.30322009]
[1745579546030,1.37559555,606.46,605.1,1.04680513]
[1745579546227,2.50800304,606.45,605.11,0.30322009]
[1745579546423,2.50800304,606.44,605.11,0.30322009]
[1745579546629,1.37559555,606.43,605.11,0.30322009]
[1745579546824,1.37559555,606.42,605.11,0.30322009]
[1745579547129,2.50800304,606.41,605.12,0.303193]
[1745579547330,1.37559555,606.4,605.11,0.303193]
[1745579547525,1.37559555,606.39,605.12,0.303193]
[1745579547830,2.50800304,606.38,605.13,0.303193]
[1745579548023,1.37559555,606.37,605.11,0.303193]
[1745579548228,1.37559555,606.36,605.12,0.303193]
[1745579548430,1.37559555,606.35,605.13,1.04680513]
[1745579548730,2.50793244,606.34,605.14,0.303193]
[1745579548929,1.37552495,606.33,605.14,0.303193]
[1745579549130,1.37552495,606.32,605.14,0.303193]
[1745579549330,2.50793244,606.31,605.14,0.303193]
[1745579549531,1.37552495,606.3,605.14,0.303193]
[1745579549724,1.37552495,606.29,605.14,0.303193]
[1745579549925,2.50793244,606.28,605.13,1.04680513]
[1745579550132,2.50793244,606.27,605.14,0.30319759]
[1745579550333,1.37552495,606.26,605.14,0.30319759]
[1745579550530,1.13240749,606.27,605.14,0.30319759]
[1745579550531,2.50793244,606.25,605.14,0.30319759]
[1745579550724,1.37552495,606.24,605.14,0.30319759]
[1745579550927,1.37552495,606.23,605.14,0.30319759]
[1745579551226,2.50793244,606.22,605.15,0.30319759]
[1745579551427,1.37552495,606.21,605.07,1.04680513]
[1745579551627,2.50793244,606.2,605.08,0.30318981]
[1745579551832,1.37552495,606.19,605.08,0.30318981]
[1745579552031,1.37552495,606.18,605.08,0.30318981]
[1745579552228,1.37608267,606.17,605.08,0.30318981]
[1745579552428,2.50849016,606.16,605.08,0.30318981]
[1745579552629,1.37608267,606.15,605.08,0.30318981]
[1745579552833,2.50849016,606.14,605.08,0.30318981]
[1745579553031,1.37608267,606.13,605.09,0.30319258]
[1745579553232,2.50849016,606.12,605.1,1.04680513]
[1745579553432,1.37608267,606.11,605.11,0.30319258]
[1745579553630,2.50849016,606.1,605.11,0.30319258]
[1745579553833,1.37608267,606.09,605.11,0.30319258]
[1745579554033,1.37608267,606.08,605.11,0.30319258]
[1745579554329,1.37608267,606.07,605.11,0.30319258]
[1745579554635,1.37608267,606.07,605.1,1.04680513]
[1745579554636,1.37608267,606.06,605.12,0.3031933]
[1745579554834,1.37608267,606.05,605.13,0.3031933]
[1745579555032,1.37608267,606.04,605.14,0.3031933]
[1745579555334,2.50849016,606.03,605.15,0.3031933]
[1745579555531,1.37608267,606.02,605.16,0.3031933]
[1745579555737,1.37608267,606.01,605.17,0.3031933]
[1745579555936,2.50849016,606.0,605.12,0.3031933]
[1745579556234,1.37608267,605.99,605.13,0.3031933]
[1745579556437,2.50849016,605.99,605.12,0.3031933]
[1745579556637,2.50849016,605.98,605.13,0.3031933]
[1745579556838,1.37608267,605.97,605.14,0.3031933]
[1745579557052,1.13240749,605.96,605.15,0.3031933]
[1745579557239,1.37608267,605.95,605.16,0.3031933]
[1745579557533,1.13240749,605.94,605.17,0.3031933]
[1745579557738,1.13240749,605.94,605.19,1.04680513]
[1745579557938,1.13240749,605.94,605.2,0.3031933]
[1745579558133,1.13240749,605.93,605.2,0.3031933]
[1745579558738,1.13240749,605.92,605.2,0.3031933]
[1745579559039,1.13240749,605.91,605.19,1.04680513]
[1745579559241,1.13240749,605.91,605.2,0.30318884]
[1745579559839,1.13240749,605.9,605.2,0.30318884]
[1745579560135,1.13240749,605.89,605.2,0.30318884]
[1745579560736,1.13240749,605.89,605.19,1.04680513]
[1745579560940,2.11190371,608.23,605.13,0.28726974]
[1745579560941,1.13240749,605.88,605.33,1.04680513]
[1745579561140,1.13240749,605.88,605.34,0.30319228]
[1745579561743,1.13240749,605.87,605.34,0.30319228]
[1745579561936,1.13240749,605.86,605.34,0.30319228]
[1745579562741,1.13240749,605.85,605.34,0.30319228]
[1745579562938,1.13240749,605.84,605.34,0.30319228]
[1745579563336,1.13240749,605.84,605.35,0.30319228]
[1745579563642,1.13240749,605.83,605.36,0.30319228]
[1745579563844,1.13240749,605.83,605.37,0.30319461]
[1745579564037,1.13240749,605.83,605.31,0.30319461]
[1745579564237,1.13240749,605.82,605.31,0.30319461]
[1745579564638,1.13240749,605.81,605.31,0.30319461]
[1745579565458,1.24128218,607.28,605.31,0.30319461]
[1745579565645,1.37928067,607.27,605.31,0.30319461]
[1745579565945,2.62056285,607.26,605.31,2.29099974]
[1745579566144,1.37928067,607.25,605.32,0.30319461]
[1745579566345,1.37928067,607.24,605.32,0.30319461]
[1745579566647,1.37928067,607.23,605.32,0.30319461]
[1745579566844,2.51572066,607.22,605.31,1.98780513]
[1745579567043,1.37972714,607.21,605.32,0.30319496]
[1745579567244,1.37972714,607.2,605.32,0.30319496]
[1745579567546,1.37972714,607.19,605.32,0.30319496]
[1745579567746,1.37972714,607.18,605.32,0.30319496]
[1745579568045,1.37972714,607.17,605.33,1.131]
[1745579568245,1.37972714,607.16,605.34,0.30319496]
[1745579568445,1.37972714,607.15,605.33,1.131]
[1745579568640,1.37972714,607.14,605.33,1.131]
[1745579568840,1.38079189,607.13,605.33,1.131]
[1745579569040,2.51723188,607.12,605.33,1.131]
[1745579569241,1.38079189,607.11,605.33,1.131]
[1745579569442,2.51723188,607.1,605.33,1.131]
[1745579569643,1.38079189,607.09,605.33,1.131]
[1745579569842,1.38079189,607.08,605.33,1.131]
[1745579570043,1.38079189,607.07,605.33,1.131]
[1745579570243,1.38079189,607.06,605.33,1.131]
[1745579570448,1.38079189,607.05,605.33,1.131]
[1745579570650,1.38197961,607.04,605.33,1.131]
[1745579570849,1.38197961,607.03,605.33,1.131]
[1745579571148,2.5184196,607.02,605.33,1.131]
[1745579571345,1.38197961,607.01,605.33,1.131]
[1745579571548,2.5184196,607.0,605.33,1.131]
[1745579571849,2.5184196,606.99,605.33,1.131]
[1745579572051,1.38197961,606.98,605.33,1.131]
[1745579572247,1.38197961,606.97,605.33,1.131]
[1745579572444,2.5184196,606.96,605.33,1.131]
[1745579572649,1.38197961,606.95,605.33,1.131]
[1745579572951,2.5184196,606.94,605.33,1.131]
[1745579573149,1.38197961,606.93,605.33,1.131]
[1745579573347,1.38197961,606.92,605.33,1.131]
[1745579573549,2.5184196,606.91,605.33,1.131]
[1745579573744,1.38197961,606.9,605.33,1.131]
[1745579574045,1.38197961,606.89,605.33,1.131]
[1745579574246,2.5184196,606.88,605.33,1.131]
[1745579574444,1.38197961,606.87,605.33,1.131]
[1745579574645,1.38197961,606.86,605.33,1.131]
[1745579574863,1.38197961,606.85,605.33,1.131]
[1745579575147,1.38197961,606.84,605.33,1.131]
[1745579575348,1.38197961,606.83,605.33,1.131]
[1745579575651,1.38197961,606.82,605.33,1.131]
[1745579575847,1.38197961,606.81,605.33,1.131]
[1745579576052,1.38197961,606.8,605.33,1.131]
[1745579576251,2.5184196,606.79,605.33,1.131]
[1745579576452,1.38197961,606.78,605.33,1.131]
[1745579576649,1.38197961,606.77,605.33,1.131]
[1745579576852,1.38197961,606.76,605.34,0.30319302]
[1745579577152,2.5184196,606.75,605.34,0.30319302]
[1745579577348,1.38197961,606.74,605.33,1.131]
[1745579577553,1.38197961,606.73,605.33,1.131]
[1745579577857,2.5184196,606.72,605.33,1.131]
[1745579578057,1.38197961,606.71,605.33,1.131]
[1745579578258,1.38197961,606.7,605.33,1.131]
[1745579578556,2.5184196,606.69,605.33,1.131]
[1745579578752,1.38197961,606.68,605.33,1.131]
[1745579578955,2.5184196,606.67,605.33,1.131]
[1745579579156,2.5184196,606.66,605.33,1.131]
[1745579579351,2.5184196,606.65,605.33,1.131]
[1745579579556,1.38197961,606.64,605.33,1.131]
[1745579579753,1.38197961,606.63,605.33,1.131]
[1745579580054,2.5184196,606.62,605.33,1.131]
[1745579580253,1.38197961,606.61,605.33,1.131]
[1745579580457,2.5184196,606.6,605.33,1.131]
[1745579580658,1.38197961,606.59,605.33,1.131]
[1745579580954,1.38197961,606.58,605.33,1.131]
[1745579581154,2.5184196,606.57,605.32,0.28715477]
[1745579581355,1.38347822,606.56,605.32,0.28715477]
[1745579581557,2.51991821,606.55,605.24,1.04680513]
[1745579581756,2.51991821,606.54,605.32,0.28718084]
[1745579581966,2.51991821,606.54,605.26,1.04680513]
[1745579581967,1.38347822,606.53,605.26,1.04680513]
[1745579582154,1.38347822,606.52,605.27,0.30319205]
[1745579582362,2.51991821,606.51,605.27,0.30319205]
[1745579582556,1.38347822,606.5,605.27,0.30319205]
[1745579582860,1.38347822,606.49,605.28,0.28718558]
[1745579583160,2.51991821,606.48,605.28,0.28718558]
[1745579583372,1.38347822,606.47,605.28,0.28718558]
[1745579583658,2.51991821,606.46,605.28,0.28718558]
[1745579583858,1.38347822,606.45,605.28,0.28718558]
[1745579584162,1.38347822,606.44,605.28,0.28718558]
[1745579584361,1.38347822,606.43,605.28,0.28718558]
[1745579584564,2.51991821,606.42,605.26,1.04680513]
[1745579584759,1.38347822,606.41,605.28,0.28719506]
[1745579584960,2.51991821,606.4,605.28,0.28719506]
[1745579585162,1.38347822,606.39,605.28,0.28719506]
[1745579585361,2.51991821,606.38,605.28,0.28719506]
[1745579585563,1.38347822,606.37,605.28,0.28719506]
[1745579585760,2.51991821,606.36,605.28,0.28719506]
[1745579585965,1.38347822,606.35,605.29,0.30318433]
[1745579586165,1.38347822,606.34,605.28,0.28719506]
[1745579586365,1.38347822,606.33,605.28,0.28719506]
[1745579586565,1.38347822,606.32,605.28,0.28719506]
[1745579586770,1.38347822,606.31,605.29,0.30318358]
[1745579586961,1.38347822,606.3,605.29,0.30318358]
[1745579587164,1.38347822,606.29,605.29,0.30318358]
[1745579587360,2.52027751,606.28,605.29,0.30318358]
[1745579587568,1.38383752,606.27,605.29,0.30318358]
[1745579587767,2.52027751,606.26,605.29,0.30318358]
[1745579588066,1.38383752,606.25,605.3,0.30318434]
[1745579588263,1.38383752,606.24,605.29,0.30318434]
[1745579588467,1.38382015,606.23,605.29,0.30318434]
[1745579588663,1.38382015,606.22,605.29,0.30318434]
[1745579588867,2.52026014,606.21,605.29,0.30318434]
[1745579589068,1.38382015,606.2,605.29,0.30318434]
[1745579589270,2.52026014,606.19,605.29,0.30318434]
[1745579589566,2.52026014,606.18,605.29,0.30318434]
[1745579589765,1.38382015,606.17,605.29,0.30318434]
[1745579589969,1.38382015,606.16,605.29,0.30318434]
[1745579590170,1.38382015,606.15,605.29,0.30318434]
[1745579590376,1.38379449,606.14,605.29,0.30318434]
[1745579590565,1.38379449,606.13,605.29,0.30318434]
[1745579590768,1.38379449,606.12,605.34,1.04680513]
[1745579590965,1.38379449,606.11,605.35,0.30318434]
[1745579591167,1.38379449,606.1,605.35,0.30318434]
[1745579591367,1.38379449,606.09,605.34,1.04680513]
[1745579591576,1.38379449,606.08,605.34,1.04680513]
[1745579591773,1.38379449,606.07,605.34,1.04680513]
[1745579591974,1.38379449,606.06,605.34,1.04680513]
[1745579592271,1.38383718,606.05,605.34,1.04680513]
[1745579592576,2.52027717,606.04,605.34,1.04680513]
[1745579592777,1.38383718,606.03,605.34,1.04680513]
[1745579592977,2.52027717,606.02,605.34,1.04680513]
[1745579593171,1.38383718,606.01,605.34,1.04680513]
[1745579593371,1.38383718,606.0,605.34,1.04680513]
[1745579593677,2.52027717,605.99,605.34,1.04680513]
[1745579593872,1.38421831,605.98,605.3,1.04680513]
[1745579594074,2.5206583,605.97,605.3,1.04680513]
[1745579594273,1.38421831,605.96,605.31,0.30319159]
[1745579594471,2.5206583,605.95,605.31,0.30319159]
[1745579594775,0.28722114,607.23,605.31,0.30319159]
[1745579594776,2.5206583,605.94,605.31,0.30319159]
[1745579594976,1.38421831,605.93,605.31,0.30319159]
[1745579595174,1.38421831,605.92,605.3,1.04680513]
[1745579595375,2.5206583,605.91,605.3,1.04680513]
[1745579595571,1.38421831,605.9,605.3,1.04680513]
[1745579595772,1.38456988,605.89,605.3,1.04680513]
[1745579595972,2.52100987,605.88,605.3,1.04680513]
[1745579596169,1.38456988,605.87,605.3,1.04680513]
[1745579596374,1.38456988,605.86,605.3,1.04680513]
[1745579596580,1.38456988,605.85,605.31,1.04680513]
[1745579596778,1.38456988,605.84,605.31,1.04680513]
[1745579596971,1.13643999,605.83,605.31,1.04680513]
[1745579597474,1.13643999,605.82,605.31,1.04680513]
[1745579597778,1.13643999,605.82,605.32,0.3031679]
[1745579598179,1.13643999,605.81,605.32,0.3031679]
[1745579598381,1.13643999,605.8,605.32,0.3031679]
[1745579598573,1.13643999,605.8,605.31,1.04680513]
[1745579598872,1.13643999,605.8,605.32,0.30316758]
[1745579599283,1.13643999,605.79,605.32,0.30316758]
[1745579599783,1.13643999,605.79,605.3,0.28724603]
[1745579600078,1.13643999,605.79,605.31,0.30316758]
[1745579600279,1.13643999,605.78,605.32,0.30316884]
[1745579600479,1.13643999,605.77,605.31,0.30316884]
[1745579600681,1.13643999,605.77,605.32,0.30316884]
[1745579600881,1.13643999,605.76,605.33,0.30316884]
[1745579601073,1.13643999,605.76,605.34,0.30316884]
[1745579601278,1.13643999,605.76,605.31,1.34997397]
[1745579601482,1.13643999,605.75,605.32,0.30316884]
[1745579601674,1.13643999,605.75,605.31,1.04680513]
[1745579601875,1.13643999,605.75,605.32,0.3031677]
[1745579602078,1.13643999,605.74,605.32,0.3031677]
[1745579602874,1.13643999,605.73,605.32,0.3031677]
[1745579603481,1.24128218,607.49,605.32,0.3031677]
[1745579603682,1.38649091,607.48,605.32,0.3031677]
[1745579603880,1.38649091,607.47,605.32,0.3031677]
[1745579604083,1.38649091,607.46,605.32,0.3031677]
[1745579604404,1.38649091,607.45,605.32,0.3031677]
[1745579604582,1.38649091,607.44,605.32,0.3031677]
[1745579604785,1.38649091,607.43,605.32,0.3031677]
[1745579604975,1.38649091,607.42,605.32,0.3031677]
[1745579605178,1.38649091,607.41,605.32,0.3031677]
[1745579605382,1.38649091,607.4,605.32,0.3031677]
[1745579605683,2.52848522,607.39,605.32,0.3031677]
[1745579605981,2.52848522,607.38,605.32,0.3031677]
[1745579606176,1.38649091,607.37,605.32,0.3031677]
[1745579606380,1.38649091,607.36,605.35,1.0505215]
[1745579606580,1.38649091,607.35,605.36,0.30310356]
[1745579606780,1.38649091,607.34,605.36,0.30310356]
[1745579606980,1.38649091,607.33,605.36,0.30310356]
[1745579607181,1.38649091,607.32,605.36,0.30310356]
[1745579607478,2.52848522,607.31,605.36,0.30310356]
[1745579607678,1.38649091,607.3,605.36,0.30310356]
[1745579607878,1.38649091,607.29,605.37,0.30310493]
[1745579608186,2.52848522,607.28,605.38,0.30310493]
[1745579608484,1.14199431,607.28,605.39,0.30310493]
[1745579608682,1.38003336,607.27,605.4,0.30310493]
[1745579608881,1.38003336,607.26,605.41,0.30310493]
[1745579609077,2.52202767,607.25,605.42,0.30310493]
[1745579609283,2.52202767,607.24,605.34,1.0505215]
[1745579609477,1.38003336,607.23,605.35,0.3031029]
[1745579609679,1.38003336,607.22,605.35,0.3031029]
[1745579609881,1.38003336,607.21,605.35,0.3031029]
[1745579610084,2.52202767,607.2,605.35,0.3031029]
[1745579610385,1.38003336,607.19,605.35,0.3031029]
[1745579610583,1.38003336,607.18,605.35,0.3031029]
[1745579610783,1.38003336,607.17,605.35,0.3031029]
[1745579610984,2.52202767,607.16,605.35,0.3031029]
[1745579611186,2.52202767,607.15,605.35,0.3031029]
[1745579611387,1.38003336,607.14,605.35,0.3031029]
[1745579611714,1.38003336,607.13,605.36,0.3031029]
[1745579611886,1.38003336,607.12,605.37,0.3031029]
[1745579612186,1.38003336,607.11,605.38,0.3031029]
[1745579612387,2.52202767,607.1,605.32,0.2870399]
[1745579612589,1.38003336,607.09,605.33,0.30309607]
[1745579612795,1.38003336,607.08,605.33,0.30309607]
[1745579613086,0.2870399,607.44,605.33,0.30309607]
[1745579613087,2.52202767,607.07,605.33,0.30309607]